Cogmind - Beta 13 @@@ ROGUE MODE // 2024.03.30 @ 22:55:52 Player: Nermattic Result: Destroyed by G-34 Mercenary with Small Laser Performance ------------- Evolutions (1) 500 Regions Visited (2) 400 Robots Destroyed (28) 140 Value Destroyed (637) 637 Prototype IDs (0) 0 Alien Tech Used (0) 0 Bonus (0) 0 TOTAL SCORE: 1677 Bonus ------- None Cogmind --------- Core Integrity 0/400 Matter 136/300 Energy 98/100 System Corruption 2% Temperature Cool (12) Movement Rolling (80) Location -9/Materials Parts ------- > --- POWER (1) -------- (None) > --- PROPULSION (2) --- Wheel Wheel > --- UTILITY (3) ------ Visual Processing Unit Targeting Computer > --- WEAPON (3) ------- (None) > --- INVENTORY (5) ---- (None) Peak State ------------ > --- POWER ------------ Deuterium Engine > --- PROPULSION ------- Titanium Leg Titanium Leg > --- UTILITY ---------- Targeting Computer ECM Suite > --- WEAPON ----------- Flak Cannon Flak Cannon Flak Cannon > --- INVENTORY -------- Ion Engine Ion Engine Beam Cannon Assault Rifle Assault Rifle [Rating: 20] Favorites ----------- Power Ion Engine Engine Ion Engine Power Core Light Nuclear Core Propulsion Light Treads Treads Light Treads Leg Titanium Leg Wheel Wheel Utility Targeting Computer Device ECM Suite Processor Targeting Computer Weapon Assault Rifle Energy Cannon Beam Cannon Ballistic Gun Assault Rifle Ballistic Cannon Flak Cannon Build | -11 -10 -9 ------- Run | Yrd Mat Mat Slots Evolved 2 | . . 2 Power . | . . . Propulsion . | . . . Utility 1 | . . 1 Weapon 1 | . . 1 Parts Attached 26 | 5 5 16 Power 4 | 1 . 3 Engine 3 | 1 . 2 Core 1 | . . 1 Reactor . | . . . Propulsion 6 | 2 . 4 Treads 2 | 2 . . Leg 2 | . . 2 Wheel 2 | . . 2 Hover . | . . . Flight . | . . . Utility 4 | . 3 1 Device 1 | . 1 . Storage . | . . . Processor 3 | . 2 1 Hackware . | . . . Protection . | . . . Artifact . | . . . Weapon 12 | 2 2 8 Energy Gun . | . . . Energy Cannon 3 | . 1 2 Ballistic Gun 5 | 2 1 2 Ballistic Cannon 4 | . . 4 Launcher . | . . . Special Weapon . | . . . Impact Weapon . | . . . Slashing Weapon . | . . . Piercing Weapon . | . . . Special Melee Weapon . | . . . Unidentified Prototypes . | . . . Corrupted Parts 1 | . . 1 System Corruption 2 | . . 2 Parts Lost 12 | . . 12 Power 3 | . . 3 Propulsion 2 | . . 2 Utility 1 | . . 1 Weapon 6 | . . 6 Highest Loss Streak 12 | . . 12 To Critical Strikes . | . . . Average Slot Usage (%) 85 | . 94 73 Engine 11 | . 14 7 Treads 18 | . 28 5 Leg 5 | . . 12 Device 7 | . 7 7 Processor 13 | . 15 11 Energy Cannon 2 | . . 5 Ballistic Gun 19 | . 27 8 Ballistic Cannon 5 | . . 13 Naked Turns . | . . . Heaviest Build 29 | 9 12 29 Greatest Support 40 | 40 40 40 Greatest Overweight (x) 3 | . . 3 Average Overweight (x) . | . . . Largest Inventory Capacity 5 | 5 5 5 Average Capacity 5 | 5 5 5 Most Carried 5 | 5 3 5 Average Carried 2 | 1 2 2 Final Capacity 5 | 5 5 5 Final Carried 3 | 1 3 . Class Distribution -------------------- 78% | Mutant 21% | Gunner Dominant Class ---------------- Mutant | -10/Materials Gunner | -9/Materials Resources | -11 -10 -9 ----------- Run | Yrd Mat Mat Matter Collected 582 | 149 103 330 Remotely . | . . . Salvage Created 708 | . 228 480 Parts 55 | . 24 31 Haulers Intercepted . | . . . Recyclers Shooed 1 | . . 1 Parts Field Recycled . | . . . Retrieved Matter . | . . . Parts Self-Destructed . | . . . Prevented . | . . . Kills | -11 -10 -9 ------- Run | Yrd Mat Mat Combat Hostiles Destroyed 22 | . 9 13 Guns 11 | . 9 2 Cannons 10 | . . 10 AOE 1 | . . 1 Classes Destroyed 7 | . 4 3 Worker 1 | . . 1 Recycler 1 | . . 1 Operator 1 | . 1 . Watcher 3 | . 2 1 Swarmer 10 | . 8 2 Grunt 10 | . 1 9 Sentry 2 | . . 2 Best Kill Streak 8 | . 4 8 Combat Bots Only 5 | . 3 5 Max Kills in Single Turn 2 | . 2 2 Gunslinging 1 | . 1 . Exploded 1 | . . 1 Melee . | . . . Uniques/NPCs Destroyed . | . . . Combat | -11 -10 -9 -------- Run | Yrd Mat Mat Hostile Shots Fired 211 | . 44 167 Missed 56 | . 16 40 Damage Taken 1874 | . 219 1655 Core 469 | . 63 406 Absorbed by Shields . | . . . Core Remaining (%) 87 | 100 74 . Volleys Fired 58 | . 27 31 Largest 3 | . 2 3 Hottest 132 | . 40 132 Shots Fired 120 | . 54 66 Gun 72 | . 54 18 Cannon 48 | . . 48 Launcher . | . . . Special . | . . . Kinetic 107 | . 54 53 Thermal 13 | . . 13 Explosive . | . . . Electromagnetic . | . . . Robot Hit Streak 5 | . 5 5 Robot Miss Streak 11 | . 3 11 Penetration Max . | . . . Secondary Targets 1 | . 1 . Max Gunslinging Chain 1 | . 1 . Shots Hit Robots 75 | . 30 45 Core Hits 62 | . 16 46 Critical Kills . | . . . Critical Parts Destroyed 2 | . 1 1 Critical Strikes 2 | . 1 1 Destroy 2 | . 1 1 Melee Attacks . | . . . Impact . | . . . Slashing . | . . . Piercing . | . . . Sneak Attacks . | . . . Combat Hostiles . | . . . Follow-up Attacks . | . . . Damage Inflicted 1258 | . 372 886 Guns 496 | . 372 124 Cannons 645 | . . 645 Explosions 68 | . . 68 Melee . | . . . Ramming 49 | . . 49 Kinetic 985 | . 372 613 Thermal 156 | . . 156 Explosive . | . . . Electromagnetic 68 | . . 68 Impact . | . . . Slashing . | . . . Piercing . | . . . Highest Corruption 2 | . . 2 Average Corruption 2 | . . 2 Corruption Purged . | . . . Corruption Blocked . | . . . Overload Shots . | . . . Overflow Damage . | . . . Projectiles . | . . . Explosions . | . . . Melee . | . . . Knockbacks 14 | . . 14 Impact . | . . . Kinetic 14 | . . 14 Secondary . | . . . Self-Inflicted Damage . | . . . Shots . | . . . Rammed . | . . . Targets Rammed 23 | . . 23 Kicked 23 | . . 23 Crushed . | . . . Highest Temperature 246 | . . 246 Average Temperature 74 | . . 74 Received Heat Transfer 879 | . 6 873 Siege Activations . | . . . Robots Corrupted . | . . . Combat Hostiles . | . . . Parts Fried . | . . . Impact Corruptions . | . . . Robots Melted . | . . . Combat Hostiles . | . . . Parts Melted . | . . . Heat Transferred 333 | . . 333 Parts Sabotaged . | . . . Parts Stolen . | . . . Parts Stripped . | . . . Power Chain Reactions . | . . . Alert | -11 -10 -9 ------- Run | Yrd Mat Mat Peak Influence 311 | . 269 311 Initial 28 | . . 28 Average 134 | . 132 158 Maximum Alert Level 1 | . 1 1 Low Security (%) 60 | 100 58 58 Level 1 39 | . 42 41 Level 2 . | . . . Level 3 . | . . . Level 4 . | . . . Level 5 . | . . . High Security . | . . . Max Security . | . . . Squads Dispatched 4 | . 1 3 Investigation 1 | . . 1 Extermination . | . . . Reinforcement 3 | . 1 2 Assault . | . . . Garrison . | . . . Intercept . | . . . Searches Triggered . | . . . Construction Impeded 1 | . . 1 Haulers Reinforced . | . . . Active Scanning Responses . | . . . Cargo Convoy Interrupts . | . . . Stealth | -11 -10 -9 --------- Run | Yrd Mat Mat Distress Signals 5 | . 2 3 Communications Jammed . | . . . Distress Signals . | . . . Times Spotted 37 | . 15 22 Peak Tracking Total 7 | . 5 7 Tactical Retreats 2 | . . 2 Traps | -11 -10 -9 ------- Run | Yrd Mat Mat Traps Triggered . | . . . Indirectly . | . . . Trap Hack Attempts . | . . . Triggered . | . . . Disarmed . | . . . Reprogrammed . | . . . Reused . | . . . Traps Extracted . | . . . Installed . | . . . Triggered . | . . . Machines | -11 -10 -9 ---------- Run | Yrd Mat Mat Machines Disabled 1 | . . 1 Max in Single Turn 1 | . . 1 Machines Repaired . | . . . Machines Dismantled . | . . . Machines Sabotaged . | . . . Overloaded Fab Kills . | . . . Hacking | -11 -10 -9 --------- Run | Yrd Mat Mat Machines Accessed 1 | . 1 . Terminals 1 | . 1 . Fabricators . | . . . Repair Stations . | . . . Recycling Units . | . . . Scanalyzers . | . . . Garrison Access . | . . . Total Hacks 2 | . 2 . Successful 1 | . 1 . Failed 1 | . 1 . Catastrophic . | . . . Database Lockouts . | . . . Manual . | . . . Terminals 2 | . 2 . Fabricators . | . . . Repair Stations . | . . . Recycling Units . | . . . Scanalyzers . | . . . Garrison Access . | . . . Terminal Hacks 1 | . 1 . Alert Level 1 | . 1 . Fabricator Hacks . | . . . Repair Station Hacks . | . . . Recycling Unit Hacks . | . . . Scanalyzer . | . . . Garrison Access Hacks . | . . . Unauthorized Hacks . | . . . Terminals . | . . . Fabricators . | . . . Repair Stations . | . . . Recycling Units . | . . . Scanalyzers . | . . . Garrison Access . | . . . Data Cores Recovered . | . . . Used . | . . . Hacking Detections 1 | . 1 . Full Trace Events . | . . . Feedback Events . | . . . Feedback Blocked . | . . . Robot Schematics Acquired . | . . . Robots Built . | . . . Authchips . | . . . Time . | . . . Total Robot Build Rating . | . . . Part Schematics Acquired . | . . . Parts Built . | . . . Authchips . | . . . Time . | . . . Total Part Build Rating . | . . . Parts Repaired . | . . . Time . | . . . Parts Recycled . | . . . Recycled Matter . | . . . Retrieved Matter . | . . . Retrieved Components . | . . . Parts Scanalyzed . | . . . Part Schematics Acquired . | . . . Parts Damaged . | . . . Bothacking | -11 -10 -9 ------------ Run | Yrd Mat Mat Used RIF Installer . | . . . Robots Hacked . | . . . Non-combat . | . . . Combat . | . . . Robot Hacks Applied . | . . . Relay Couplers Released . | . . . Fabnet Peak Effective % . | . . . Robots Rewired . | . . . Allies Hacked . | . . . Hacks Repelled . | . . . Allies | -11 -10 -9 -------- Run | Yrd Mat Mat Total Allies . | . . . Largest Group . | . . . Highest-Rated Group . | . . . Highest-Rated Ally . | . . . Total Orders . | . . . Ally Attacks . | . . . Total Damage . | . . . Kills . | . . . Allies Corrupted . | . . . Allies Melted . | . . . Intel | -11 -10 -9 ------- Run | Yrd Mat Mat Robot Analysis Total . | . . . Derelict Logs Recovered . | . . . Drone Launches . | . . . Drone Recoveries . | . . . Exploration | -11 -10 -9 ------------- Run | Yrd Mat Mat Turns Passed 748 | 46 400 302 Spaces Moved 339 | 31 193 115 Core 17 | 12 . 5 Treads 247 | 19 193 35 Legs 63 | . . 63 Wheels 12 | . . 12 Hover . | . . . Flight . | . . . Fastest Speed 50 | 50 160 80 Average Speed 147 | 117 160 134 Slowest Speed 200 | 160 160 200 Overloaded Moves . | . . . Propulsion Burnouts . | . . . Robots Hopped . | . . . Cave-ins Triggered . | . . . Exploration Rate (%) 21 | 5 44 15 Regions Visited 2 Branch Regions . Pre-discovered Areas . | . . . Known Exits Taken . | . . . Unknown Exits Taken 2 | 1 1 . Scrap Searched . | . . . Spaces Dug . | . . . Terrain Destroyed . | . . . Melee . | . . . Projectile . | . . . AOE . | . . . Terrain Rammed . | . . . Walls Destroyed . | . . . Machines Disabled . | . . . Actions | -11 -10 -9 --------- Run | Yrd Mat Mat Total 471 | 41 229 201 Wait . | . . . Move 337 | 30 192 115 Hop . | . . . Pick Up 22 | 6 5 11 Fast Attach . | . . . Attach 17 | 5 2 10 Detach . | . . . Swap 9 | . 3 6 Drop 5 | . . 5 Fire 58 | . 27 31 Melee . | . . . Ram . | . . . Kick 23 | . . 23 Crush . | . . . Escape Stasis . | . . . Rewire . | . . . Trap . | . . . Miscellaneous . | . . . Route ------- -11/Scrapyard -10/Materials -9/Materials History --------- Turn | Location | Event 7 | -11/Scrapyard | Discovered new exit (range 16) 47 | -11/Scrapyard | Entered Materials 317 | -10/Materials | Build established: Mutant 419 | -10/Materials | Discovered new exit (range 16) 447 | -10/Materials | Entered another Materials area 447 | -9/Materials | Evolved 2 slots: Utility x1, Weapon x1 677 | -9/Materials | Core integrity fell below 50% 734 | -9/Materials | Core integrity fell below 20% 749 | -9/Materials | Destroyed by G-34 Mercenary with Small Laser Last Messages --------------- 00735_ K-01 Serf collects debris. 00735_ U-05 Engineer lays Concrete. 00737_ Acquired 23 matter. 00737_ Assault Rifle destroyed. 00737_ K-01 Serf collects debris. 00737_ U-05 Engineer lays Concrete. 00739_ K-01 Serf collects debris. 00739_ G-34 Mercenary destroyed. 00740_ U-05 Engineer lays Concrete. 00741_ K-01 Serf collects debris. 00741_ Lgt. Nuclear Core destroyed. 00741_ U-05 Engineer lays Concrete. 00743_ K-01 Serf collects debris. 00743_ Beam Cannon destroyed. 00744_ U-05 Engineer lays Concrete. 00744_ K-01 Serf collects debris. 00745_ U-05 Engineer lays Concrete. 00746_ K-01 Serf collects debris. 00747_ U-05 Engineer lays Concrete. 00747_ K-01 Serf collects debris. Map ----- +----------------------------------------------------+ | ????????????????????# #???????????????????????? | | ????????????????????# #???????????????????????? | | ????????????????????# ##??????????????????????? | | ????????????????????# #??????????????????????? | | ????????????????????# #??????????????????????? | | ????????????????????# +??????????????????????? | | ????????????????????# #??????????????????????? | | ????????????????????# #??????????????????????? | | ????????????????????### ###????? ???????????????? | | ??????????????????????# #?????? ??????????????? | | ????????????????????### ###???? ???????????????? | | ????????????????????# #???? ???????????????? | | ????????????????????# #???? ??????? ????????? | | ????????????????????# #???? ????? ????????? | | ???????????????###??# #####+#### ????????? | | ???????????????? ?# ???????? | | ?????????????? // ?## ???????? | | ?????????????? / ??# ???????? | | ?????????????? ??# %#########?????????? | | ???????????????"T" ??# !*#?????????????????? | | ????????????????"" ?## %= =#?????????????????? | | ???????????????###/## *%!g #?????????????????? | | ?????????####### a !=g= ## +?????????? | | ?????????# / *!=%* + ]]] #?????????? | | ????????????"" # =*[####### ]] #?????????? | | ???????????????#* = *!= @#???????]] #?????????? | | ?????????? """ # ! =##????????#?###?????????? | | ?????????# + ! #???????????????????????? | | ?????????# """ # #???????????????????????? | | ????????????"??# #???????????????????????? | | ???????????????# ku #???????????????????????? | | ???????????????# ??????????????????????? | | ???????????????# ????????????????????? | | ???????????????# ??????????????????? | | ???????????????# ### ## ?????????????????? | | ??????????????# ?# #?#####?????????????????? | | ??????????????# ?# #???????????????????????? | | ??????????????+ T ?# #???????????????????????? | | ??????????????# ?# #???????????????????????? | | ??????????????# ?# #???????????????????????? | | ??????????????######?# #???????????????????????? | | ?????????????????????? #???????????????????????? | | ?????????????????????? ????????????????????????? | | ?????????????????????? ????????????????????????? | | ?????????????????????????????????????????????????? | | ?????????????????????????????????????????????????? | | ?????????????????????????????????????????????????? | | ?????????????????????????????????????????????????? | | ?????????????????????????????????????????????????? | | ?????????????????????????????????????????????????? | +----------------------------------------------------+ Best States ------------- Heat Dissipation 28 Energy Generation 14 Energy Capacity 275 Matter Stores 199 Matter Capacity 300 Sight Range 18 Terrain Scan Density 10 ECM Strength 1 Evasion (%) 55 Targeting Accuracy 10 Recoil Reduction 2 Item Schematics ----------------- None Robot Schematics ------------------ None Fabricated ------------ Nothing Alien Tech Used ----------------- None Achievements -------------- None Challenges ------------ None Game ------ Seed GrenadeTimingFemtoactuators Manual? 0 Play Time 00:11:38 Cumulative 3.5 hours Start 2024.03.30 @ 22:46:13 End 2024.03.30 @ 22:55:52 Sessions 1 Manual Loads 0 Difficulty Rogue Special Mode None Game No. 7 Rogue 7 Adventurer 0 Explorer 0 Win Type - Total 0 Types 0/0/0/0/0/0/0/0/0 Lore% 4 Gallery% 9 Achievement% 6 Wizard Run 0 Options --------- Layout 1 ASCII 0 Keyboard 0 Movement Mouse Keybinds 0 Fullscreen 2 Font 24/Smallcaps Map View 25x17 Zoom Use 66% Tactical HUD 1 Map Filters NONE Filters NONE Steam 1 RUN: 5c21be52-d1ff-4cef-b203-51398a3ab246